Cogmind - Beta 15 *** ADVENTURER MODE // 2025.08.31 @ 13:10:33 Player: Knightshade Result: Destroyed by QT-TH0(R) with Subdweller Laser Performance ------------- Evolutions (0) 0 Regions Visited (2) 400 Robots Destroyed (36) 180 Value Destroyed (912) 912 Prototype IDs (2) 40 Alien Tech Used (0) 0 Bonus (0) 0 TOTAL SCORE: 1532 Bonus ------- None Cogmind --------- Core Integrity 0/250 Matter 245/300 Energy 97/100 System Corruption 0% Temperature Cool (6) Movement Treading (240) Ox1 Location -10/Subcaves Parts ------- > --- POWER (1) -------- (None) > --- PROPULSION (2) --- Light Treads > --- UTILITY (2) ------ Medium Storage Unit Makeshift Terrain Scanner > --- WEAPON (2) ------- Battle Cannon Slug Cannon > --- INVENTORY (10) --- Seismic Detector Makeshift Light Armor Plating Makeshift Hacking Suite Makeshift Hacking Suite Recalibrator Autogun Subdweller Machine Gun Plasma Cutter Multitool Scrap Shield Fragment (49) Peak State ------------ > --- POWER ------------ Ion Engine > --- PROPULSION ------- Light Treads Light Treads > --- UTILITY ---------- Medium Storage Unit Makeshift Terrain Scanner > --- WEAPON ----------- Subdweller Machine Gun Slug Cannon > --- INVENTORY -------- Seismic Detector Makeshift Light Armor Plating Makeshift Hacking Suite Makeshift Hacking Suite Recalibrator Autogun Battle Cannon Plasma Cutter Multitool Scrap Shield Fragment [Rating: 19] Favorites ----------- Power Improved Ion Engine Engine Improved Ion Engine Propulsion Light Treads Treads Light Treads Wheel Wheel Utility Large Storage Unit Device Makeshift Terrain Scanner Storage Large Storage Unit Protection Light Armor Plating Weapon Autogun Energy Gun Small Laser Energy Cannon Subdweller Beam Cannon Ballistic Gun Autogun Ballistic Cannon Slug Cannon Build | -11 -10 -10 ------- Run | Yrd Mat Sub Slots Evolved . | . . . Power . | . . . Propulsion . | . . . Utility . | . . . Weapon . | . . . Parts Attached 28 | 7 9 12 Power 4 | 1 2 1 Engine 4 | 1 2 1 Core . | . . . Reactor . | . . . Propulsion 5 | 3 1 1 Treads 4 | 2 1 1 Leg . | . . . Wheel 1 | 1 . . Hover . | . . . Flight . | . . . Utility 9 | 1 3 5 Device 4 | . 1 3 Storage 3 | 1 1 1 Processor . | . . . Hackware . | . . . Protection 2 | . 1 1 Artifact . | . . . Weapon 10 | 2 3 5 Energy Gun 1 | . 1 . Energy Cannon 1 | . . 1 Ballistic Gun 6 | 2 2 2 Ballistic Cannon 2 | . . 2 Launcher . | . . . Special Weapon . | . . . Impact Weapon . | . . . Slashing Weapon . | . . . Piercing Weapon . | . . . Special Melee Weapon . | . . . Unidentified Prototypes . | . . . Parts Lost 7 | . 2 5 Power 3 | . 1 2 Propulsion 1 | . . 1 Utility 1 | . . 1 Weapon 2 | . 1 1 Highest Loss Streak 2 | . 1 2 To Critical Strikes . | . . . Average Backups 8 | 3 10 7 Power . | . . . Propulsion 1 | 1 3 . Utility 4 | . 4 3 Weapon 1 | . 1 1 Tool/Special . | . . . Unused Backups 18 | . 3 15 Power . | . . . Propulsion 5 | . 2 3 Utility 7 | . . 7 Weapon 4 | . 1 3 Tool/Special 2 | . . 2 Average Slot Usage (%) 96 | . 98 95 Engine 12 | . 13 10 Treads 27 | . 28 27 Device 8 | . 4 12 Storage 13 | . 14 13 Protection 5 | . 8 1 Energy Cannon 1 | . . 3 Ballistic Gun 24 | . 25 24 Peak Build Rating 19 | 6 12 19 Average Rating 11 | 4 9 15 On Entrance 6 | . 6 12 Naked Turns . | . . . Heaviest Build 36 | 10 36 36 Greatest Support 40 | 40 40 40 Greatest Overweight (x) 1 | . . 1 Average Overweight (x) . | . . . Largest Inventory Capacity 15 | 8 15 15 Average Capacity 11 | 7 13 9 Most Carried 15 | 6 15 15 Average Carried 9 | 3 10 9 Final Capacity 15 | 8 15 10 Final Carried 15 | 6 15 10 Class Distribution -------------------- 75% | Mutant 24% | Scavenger-Mutant Dominant Class ---------------- Mutant | -10/Materials Scavenger-Mutant | -10/Subcaves Resources | -11 -10 -10 ----------- Run | Yrd Mat Sub Matter Collected 984 | 156 383 445 Remotely . | . . . Salvage Created 1244 | 49 706 489 Parts 87 | 9 54 24 Haulers Intercepted 1 | . 1 . Recyclers Shooed . | . . . Parts Field Recycled . | . . . Retrieved Matter . | . . . Parts Self-Destructed 17 | . . 17 Prevented . | . . . Kills | -11 -10 -10 ------- Run | Yrd Mat Sub Combat Hostiles Destroyed 29 | . 18 11 Guns 26 | . 18 8 Cannons 3 | . . 3 Classes Destroyed 9 | 1 5 3 Tunneler 3 | 3 . . Hauler 1 | . 1 . Mechanic 1 | . 1 . Watcher 2 | . 2 . Swarmer 9 | . 6 3 Grunt 12 | . 12 . Artisan 1 | . . 1 Cobbler 1 | . . 1 Subdweller 8 | . . 8 Best Kill Streak 4 | 2 4 3 Combat Bots Only 4 | . 4 3 Max Kills in Single Turn 1 | 1 1 1 Gunslinging . | . . . Exploded . | . . . Melee . | . . . Uniques/NPCs Destroyed . | . . . Combat | -11 -10 -10 -------- Run | Yrd Mat Sub Hostile Shots Fired 187 | . 92 95 Missed 54 | . 23 31 Hits 133 | . 69 64 Projectile 133 | . 69 64 Critical Strikes 2 | . 1 1 Damage Taken 1508 | . 592 916 Core 251 | . 116 135 Absorbed by Shields . | . . . Ignored by Resistances 452 | . 188 264 Core Remaining (%) 100 | 100 . . Volleys Fired 149 | 9 83 57 Largest 2 | 2 2 2 Hottest 103 | 40 60 103 Shots Fired 288 | 18 162 108 Gun 274 | 18 162 94 Cannon 14 | . . 14 Launcher . | . . . Special . | . . . Kinetic 276 | 18 158 100 Thermal 12 | . 4 8 Explosive . | . . . Electromagnetic . | . . . Robot Hit Streak 57 | 6 19 57 Robot Miss Streak 3 | 1 3 2 Penetration Max . | . . . Secondary Targets 5 | . 4 1 Max Gunslinging Chain 1 | . 1 1 Shots Hit Robots 235 | 14 131 90 Core Hits 79 | 7 51 21 Critical Kills 2 | . 1 1 Critical Parts Destroyed 1 | . 1 . Critical Strikes 3 | . 2 1 Destroy 3 | . 2 1 Melee Attacks . | . . . Impact . | . . . Slashing . | . . . Piercing . | . . . Sneak Attacks . | . . . Combat Hostiles . | . . . Follow-up Attacks . | . . . Damage Inflicted 2808 | 114 1089 1605 Guns 2514 | 114 1089 1311 Cannons 294 | . . 294 Explosions . | . . . Melee . | . . . Ramming . | . . . Kinetic 2569 | 114 1044 1411 Thermal 239 | . 45 194 Explosive . | . . . Electromagnetic . | . . . Impact . | . . . Slashing . | . . . Piercing . | . . . Highest Corruption . | . . . Average Corruption . | . . . Corruption Purged . | . . . Corruption Blocked . | . . . Overload Shots . | . . . Overflow Damage . | . . . Projectiles . | . . . Explosions . | . . . Melee . | . . . Knockbacks . | . . . Impact . | . . . Kinetic . | . . . Secondary . | . . . Self-Inflicted Damage . | . . . Shots . | . . . Rammed . | . . . Targets Rammed . | . . . Kicked . | . . . Crushed . | . . . Highest Temperature 96 | . 96 60 Average Temperature 33 | . 34 22 Received Heat Transfer 606 | . 387 219 Siege Activations . | . . . Martial Activations . | . . . Shielding Activations . | . . . Robots Disrupted . | . . . Combat Hostiles . | . . . Robots Corrupted . | . . . Combat Hostiles . | . . . Parts Fried . | . . . Impact Corruptions . | . . . Robots Melted . | . . . Combat Hostiles . | . . . Parts Melted . | . . . Heat Transferred 359 | . 100 259 Parts Sabotaged . | . . . Parts Stolen . | . . . Parts Stripped . | . . . Power Chain Reactions . | . . . Alert | -11 -10 -10 ------- Run | Yrd Mat Sub Maximum Alert Level . | . . . Low Security (%) 100 | 100 100 . Level 1 . | . . . Level 2 . | . . . Level 3 . | . . . Level 4 . | . . . Level 5 . | . . . High Security . | . . . Max Security . | . . . Peak Influence 187 | 5 187 . Initial . | . . . Average 49 | 1 52 . Influence Increases 758 | 15 568 175 Destroy 0b10 Robot/C 420 | . 360 60 Destroy 0b10 Robot/NC 40 | 15 25 . Destroy Leader 86 | . 76 10 Successful Hack 47 | . 47 . Select Force Hacks 30 | . 30 . Lose Combat Pursuer 135 | . 30 105 Influence Decreases 758 | 15 568 175 Time Decay 728 | 15 548 165 Lost Part 30 | . 20 10 Squads Dispatched 4 | . 4 . Investigation 4 | . 4 . Extermination . | . . . Reinforcement . | . . . Assault . | . . . Garrison . | . . . Intercept . | . . . Searches Triggered . | . . . Construction Impeded . | . . . Haulers Reinforced . | . . . Active Scanning Responses . | . . . Cargo Convoy Interrupts . | . . . Stealth | -11 -10 -10 --------- Run | Yrd Mat Sub Distress Signals 3 | . 3 . Communications Jammed . | . . . Distress Signals . | . . . Times Spotted 45 | . 28 17 Peak Tracking Total 8 | . 8 3 Tactical Retreats 5 | . 2 3 Traps | -11 -10 -10 ------- Run | Yrd Mat Sub Traps Triggered 2 | . 2 . Indirectly . | . . . Trap Hack Attempts . | . . . Triggered . | . . . Disarmed . | . . . Reprogrammed . | . . . Reused . | . . . Traps Extracted . | . . . Installed . | . . . Triggered . | . . . Machines | -11 -10 -10 ---------- Run | Yrd Mat Sub Machines Disabled . | . . . Max in Single Turn . | . . . Machines Repaired . | . . . Machines Dismantled . | . . . Machines Sabotaged . | . . . Overloaded Fab Kills . | . . . Hacking | -11 -10 -10 --------- Run | Yrd Mat Sub Machines Accessed 8 | . 7 1 Terminals 6 | . 6 . Fabricators . | . . . Repair Stations . | . . . Recycling Units 1 | . 1 . Scanalyzers . | . . . Garrison Access . | . . . Total Hacks 29 | . 25 4 Successful 23 | . 19 4 Failed 6 | . 6 . Catastrophic 1 | . 1 . Database Lockouts . | . . . Manual 22 | . 21 1 Terminals 24 | . 24 . Fabricators . | . . . Repair Stations . | . . . Recycling Units 1 | . 1 . Scanalyzers . | . . . Garrison Access . | . . . Terminal Hacks 12 | . 8 4 Record 5 | . 1 4 Prototype ID Bank 2 | . 2 . Locate Traps 1 | . 1 . Recall Investigation 2 | . 2 . Registered Components 1 | . 1 . Registered Prototypes 1 | . 1 . Fabricator Hacks . | . . . Repair Station Hacks . | . . . Recycling Unit Hacks . | . . . Scanalyzer . | . . . Garrison Access Hacks . | . . . Unauthorized Hacks 11 | . 11 . Terminals 10 | . 10 . Botnet 4 | . 4 . Skim 6 | . 6 . Fabricators . | . . . Repair Stations . | . . . Recycling Units 1 | . 1 . Tunnel 1 | . 1 . Scanalyzers . | . . . Garrison Access . | . . . Data Cores Recovered . | . . . Used . | . . . Hacking Detections 6 | . 6 . Full Trace Events 5 | . 5 . Feedback Events . | . . . Feedback Blocked . | . . . Robot Schematics Acquired . | . . . Robots Built . | . . . Authchips . | . . . Time . | . . . Total Robot Build Rating . | . . . Part Schematics Acquired . | . . . Parts Built . | . . . Authchips . | . . . Time . | . . . Total Part Build Rating . | . . . Parts Repaired . | . . . Time . | . . . Parts Recycled . | . . . Recycled Matter . | . . . Retrieved Matter . | . . . Retrieved Components . | . . . Parts Scanalyzed . | . . . Part Schematics Acquired . | . . . Parts Damaged . | . . . Bothacking | -11 -10 -10 ------------ Run | Yrd Mat Sub Used RIF Installer . | . . . Robots Hacked . | . . . Non-combat . | . . . Combat . | . . . Robot Hacks Applied . | . . . Relay Couplers Released . | . . . Fabnet Peak Effective % . | . . . Robots Rewired . | . . . Allies Hacked . | . . . Hacks Repelled . | . . . Allies | -11 -10 -10 -------- Run | Yrd Mat Sub Total Allies . | . . . Largest Group . | . . . Highest-Rated Group . | . . . Highest-Rated Ally . | . . . Total Orders . | . . . Ally Attacks . | . . . Total Damage . | . . . Kills . | . . . Allies Corrupted . | . . . Allies Melted . | . . . Intel | -11 -10 -10 ------- Run | Yrd Mat Sub Active Infowar (turns) 1869 | . 593 1276 Optics 64 | . . 64 Sensors 593 | . 593 . Terrain 967 | . . 967 Seismic 245 | . . 245 Robot Analysis Total . | . . . Derelict Logs Recovered 2 | . . 2 Drone Launches . | . . . Drone Recoveries . | . . . Exploration | -11 -10 -10 ------------- Run | Yrd Mat Sub Turns Passed 3237 | 109 1670 1458 Spaces Moved 1496 | 46 795 655 Core 1 | 1 . . Treads 1489 | 39 795 655 Legs . | . . . Wheels 6 | 6 . . Hover . | . . . Flight . | . . . Fastest Speed 50 | 50 160 160 Average Speed 159 | 147 160 160 Slowest Speed 240 | 160 160 240 Overloaded Moves . | . . . Propulsion Burnouts . | . . . Robots Hopped . | . . . Potential Cave-ins . | . . . Cave-ins Triggered . | . . . Exploration Rate (%) 49 | 3 93 51 Regions Visited 2 Branch Regions 1 Pre-discovered Areas 3 | . 1 2 Known Exits Taken . | . . . Unknown Exits Taken 2 | 1 1 . Scrap Searched 2 | . . 2 Spaces Dug . | . . . Terrain Destroyed . | . . . Melee . | . . . Projectile . | . . . AOE . | . . . Terrain Rammed . | . . . Walls Destroyed . | . . . Machines Disabled . | . . . Actions | -11 -10 -10 --------- Run | Yrd Mat Sub Total 2116 | 73 1065 978 Wait 354 | . 147 207 Move 1494 | 45 794 655 Hop . | . . . Pick Up 53 | 12 20 21 Fast Attach . | . . . Attach 16 | 6 5 5 Detach 1 | . 1 . Swap 16 | 1 4 11 Drop 30 | . 8 22 Fire 149 | 9 83 57 Melee . | . . . Ram . | . . . Kick . | . . . Crush . | . . . Escape Stasis . | . . . Rewire 3 | . 3 . Trap . | . . . Miscellaneous . | . . . Route ------- -11/Scrapyard -10/Materials (discovered 5 exits: [*Mat x3] / [*Min] / *Sub) -10/Subcaves (discovered 3 exits: [*Mat x2] / [*Rec]) History --------- Turn | Location | Event 10 | -11/Scrapyard | Discovered new exit (range 15) 110 | -11/Scrapyard | Entered Materials 315 | -10/Materials | Build established: Mutant 565 | -10/Materials | Discovered new exit (range 3) 666 | -10/Materials | Discovered new exit (range 9) 1264 | -10/Materials | Discovered new exit (range 6) 1486 | -10/Materials | Discovered new exit (range 12) 1491 | -10/Materials | Discovered new exit (range 10) 1780 | -10/Materials | Entered Subcaves 1814 | -10/Subcaves | Ambushed by angry Subdweller bent on revenge 1970 | -10/Subcaves | Core integrity fell below 50% 2025 | -10/Subcaves | Discovered new exit (range 13) 2148 | -10/Subcaves | Discovered new exit (range 8) 2331 | -10/Subcaves | Core integrity fell below 20% 2543 | -10/Subcaves | A swath of the cavern ceiling suddenly collapsed 2746 | -10/Subcaves | Build established: Scavenger-Mutant 2755 | -10/Subcaves | Learned location of Storage (-7) 2941 | -10/Subcaves | Visited Clippyterm 2946 | -10/Subcaves | Learned Factory garrison access intel 2946 | -10/Subcaves | Learned Factory stockpile data 3083 | -10/Subcaves | Discovered new exit (range 9) 3145 | -10/Subcaves | Shifting Twisted Machinery released Sub. Shrapnel Launcher 3228 | -10/Subcaves | Visited 4L-MR0's lab 3238 | -10/Subcaves | Destroyed by QT-TH0(R) with Subdweller Laser Last Messages --------------- 03075_ Destroyed Flight Unit. 03078_ Destroyed Lgt. Ion Engine. 03081_ S-10 Pest destroyed. 03082_ Lgt. Ion Engine fries itself beyond repair. 03083_ EXIT=FOUND 03089_ Lgt. Ion Engine fries itself beyond repair. 03091_ Flight Unit fries itself beyond repair. 03093_ Acquired 10 matter. Sub. Shrapnel Launcher falls loose from the Twisted Machinery. 03171_ Searching scrap... 03171_ Found Riot Gun. 03171_ Found Scrap Shield. 03171_ Found 42 Matter. 03172_ Acquired 36 matter. 03172_ Searching scrap... 03172_ Found Sub. Shrapnel Launcher. 03172_ Found 67 Matter. 03227_ Lgt. Treads destroyed. 03228_ 67-I16(R) destroyed. 03231_ Ion Engine destroyed. Map ----- +----------------------------------------------------+ | | | | | | | | | | | | | | | | | | | | | | | | | | | | | | | | | | | | | | | ????????????????????????##???????????????????????? | | ?????????#??#?????#???????????????????#??????????? | | ???????????????????#?????#????#??????????????????? | | ????????##???# "#"""""???????????????????????????? | | ?????????????#!" "X" ?????????#????????????????? | | ?????????#?????#% %#####?#?????????#?????????? | | ???????????????# R& R @ #??#??????#?????#?????? | | ????????????#???#########< #??#??????????????????? | | ??????????#?#$##???#?####< #?????????????????????? | | #?#???????#?# ""#####"%% <#?????????????????????? | | #???#????#??## #! []^#??????#??????????????? | | ?????????????#""## <##??#?????????#????????? | | #???????????????#" ## " ##?????????????#????????? | | ?????????###??### "#####???#???????????????????? | | ###???????#?### " ###?#?????#???????????????? | | ##???????## """#???#???#??#??????????? | | ##??????# ##### """"??????"???#??????????? | | #??#????## ## """"???#???????#?????????? | | ########?## """???"?????#????????????? | | < ## #?#?# """???? ????????????????? | | ###?## ### """???????#?#???????????? | | #?## ##???# #????????#???????????? | | % #?# ####?? ##???????????????????? | | %##### ### # # ??????????????????? | | #??## # #???????????????????? | | ##??# #"] ##????????????????????? | | ###?# ##"?? #????????????????????? | | #### ## ##### """????????????????????????? | | #?# #######??? ""????????????????????????? | | #?####?????????? #?#?????????????????????? | | #??????????????? #???????????????????????? | +----------------------------------------------------+ Best States ------------- Heat Dissipation 25 Energy Generation 12 Energy Capacity 265 Matter Stores 300 Matter Capacity 300 Sight Range 21 Robot Scan Range 14 Terrain Scan Range 18 Terrain Scan Density 10 Armor Coverage 800 Resistance: KI 20 Resistance: TH 20 Resistance: EX 20 Resistance: EM 20 Resistance: I 20 Resistance: S 20 Resistance: P 20 Evasion (%) 40 Recoil Reduction 2 Offensive Hacking 10 Item Schematics ----------------- None Robot Schematics ------------------ None Fabricated ------------ Nothing Repaired ---------- Nothing Alien Tech Used ----------------- None Achievements -------------- None Challenges ------------ None Game ------ Seed FireRagnarokPit Manual? 0 Play Time 00:24:21 Cumulative 109.2 hours Start 2025.08.31 @ 12:38:08 End 2025.08.31 @ 13:10:33 Sessions 1 Manual Loads 0 Difficulty Adventurer Special Mode None Game No. 75 Rogue 0 Adventurer 75 Explorer 0 Win Type - Total 0 Types 0/0/0/0/0/0/0/0/0/0 Lore% 21 Gallery% 42 Achievement% 38 Wizard Run 0 Options --------- Layout 0 ASCII 0 Keyboard 0 Movement Mouse Keybinds 0 Fullscreen 1 Font 18/SmallcapsGlow Map View 76x50 Zoom Use 0% Tactical HUD 1 Map Filters NONE Filters NONE Steam 1 RUN: 7e9f0fa2-428b-4e70-a298-c2a21b2f0146